bitfinex-derivatives/quotes_BTCF0:USTF0_20250929
["timestamp","ask_amount","ask_price","bid_price","bid_amount"]
[1759179680417,0.04720091,114340.0,114330.0,2.04024696]
[1759179681516,0.04720091,114340.0,114330.0,1.6932867]
[1759179681718,0.04720091,114340.0,114330.0,2.04024696]
[1759179682314,0.48156367,114340.0,114330.0,2.04024696]
[1759179682506,0.48156367,114340.0,114330.0,1.23228696]
[1759179682713,0.48156367,114340.0,114330.0,2.03988696]
[1759179683321,0.15780341,114340.0,114330.0,0.8853267]
[1759179683523,0.41736117,114340.0,114330.0,2.03984696]
[1759179686022,0.41736117,114340.0,114330.0,1.23228696]
[1759179686223,0.41736117,114340.0,114330.0,2.03932696]
[1759179686734,0.07040091,114340.0,114330.0,2.03932696]
[1759179687033,0.07040091,114340.0,114330.0,1.23228696]
[1759179687331,0.41736117,114340.0,114330.0,2.03932696]
[1759179687933,0.80047663,114340.0,114330.0,2.03932696]
[1759179689030,0.80047663,114340.0,114330.0,1.23228696]
[1759179689235,0.80047663,114340.0,114330.0,2.03900696]
[1759179689434,0.88787913,114340.0,114330.0,2.03900696]
[1759179690734,0.86607822,114340.0,114330.0,2.03900696]
[1759179691236,0.86607822,114340.0,114330.0,1.6920467]
[1759179691432,0.86607822,114340.0,114330.0,2.03900696]
[1759179692034,0.77867572,114340.0,114330.0,2.03900696]
[1759179693735,0.43171546,114340.0,114330.0,2.03900696]
[1759179693927,0.77867572,114340.0,114330.0,2.03900696]
[1759179694736,0.86607802,114340.0,114330.0,2.03900696]
[1759179695436,0.43171546,114340.0,114330.0,2.03900696]
[1759179695642,0.77867572,114340.0,114330.0,2.03900696]
[1759179699439,0.77867572,114340.0,114330.0,1.63896696]
[1759179699939,0.39556026,114340.0,114330.0,1.63896696]
[1759179700141,0.77867572,114340.0,114330.0,1.63896696]
[1759179700741,0.80069859,114340.0,114330.0,1.63896696]
[1759179701039,0.45373833,114340.0,114330.0,1.63896696]
[1759179705942,0.80069859,114340.0,114330.0,1.63896696]
[1759179708149,0.80069859,114340.0,114330.0,1.2920067]
[1759179708446,0.80069859,114340.0,114330.0,1.63896696]
[1759179709047,0.45373833,114340.0,114330.0,1.63896696]
[1759179709242,0.80069859,114340.0,114330.0,1.63896696]
[1759179712050,0.45373833,114340.0,114330.0,1.63896696]
[1759179712240,0.80069859,114340.0,114330.0,1.63896696]
[1759179713147,0.45373833,114340.0,114330.0,1.63896696]
[1759179714845,0.45373833,114340.0,114330.0,0.83228696]
[1759179715048,0.45373833,114340.0,114330.0,1.63892696]
[1759179715945,0.43053833,114340.0,114330.0,1.63892696]
[1759179718250,0.43053833,114340.0,114330.0,1.63892006]
[1759179721247,0.43053833,114340.0,114330.0,0.83228006]
[1759179721455,0.43053833,114340.0,114330.0,1.63888006]
[1759179721750,0.45246833,114340.0,114330.0,1.63888006]
[1759179721945,0.45246833,114340.0,114330.0,0.83228006]
[1759179722151,0.45246833,114340.0,114330.0,1.63888006]
[1759179722353,0.45246833,114340.0,114330.0,0.83228006]
[1759179722554,0.45246833,114340.0,114330.0,1.2919267]
[1759179722750,0.45246833,114340.0,114330.0,1.63888006]
[1759179723054,0.45246833,114340.0,114330.0,0.83228006]
[1759179723552,0.45246833,114340.0,114330.0,1.63888006]
[1759179724252,0.45236852,114340.0,114330.0,1.63888006]
[1759179724852,0.45236852,114340.0,114330.0,1.2919267]
[1759179725155,0.45236852,114340.0,114330.0,1.63888006]
[1759179725648,0.45236852,114340.0,114330.0,0.83228006]
[1759179725853,0.45236852,114340.0,114330.0,1.63888006]
[1759179726354,0.45236852,114340.0,114330.0,0.83228006]
[1759179726553,0.45236852,114340.0,114330.0,1.63888006]
[1759179729358,0.43043852,114340.0,114330.0,1.63888006]
[1759179729853,0.04732306,114340.0,114330.0,1.63888006]
[1759179730252,0.43043852,114340.0,114330.0,1.63888006]
[1759179731756,0.40851546,114340.0,114330.0,1.63888006]
[1759179731958,0.4304412,114340.0,114330.0,1.63888006]
[1759179734261,0.4523712,114340.0,114330.0,1.63880006]
[1759179734960,0.4523712,114340.0,114330.0,0.4853267]
[1759179735164,0.4523712,114340.0,114330.0,1.63880006]
[1759179736664,0.4523712,114340.0,114330.0,0.83228006]
[1759179736865,0.4523712,114340.0,114330.0,1.63880006]
[1759179737467,0.4523712,114340.0,114330.0,1.2918467]
[1759179737665,0.4523712,114340.0,114330.0,1.63880006]
[1759179738565,0.4523712,114340.0,114330.0,0.83228006]
[1759179738767,0.4523712,114340.0,114330.0,1.63876006]
[1759179743066,0.4523712,114340.0,114330.0,0.4853267]
[1759179743262,0.4523712,114340.0,114330.0,1.63872006]
[1759179745461,0.4304412,114340.0,114330.0,1.63872006]
[1759179747874,0.4304412,114340.0,114330.0,1.2917667]
[1759179748271,0.4304412,114340.0,114330.0,1.63872006]
[1759179749764,0.4530712,114340.0,114330.0,0.83228006]
[1759179750170,0.4530712,114340.0,114330.0,1.63864006]
[1759179752571,0.4530712,114340.0,114330.0,0.83228006]
[1759179752777,0.4530712,114340.0,114330.0,1.63864006]
[1759179753877,0.4304412,114340.0,114330.0,1.63864006]
[1759179757686,0.4304412,114340.0,114330.0,1.2916867]
[1759179757888,0.4304412,114340.0,114330.0,1.63864006]
[1759179759186,0.5178435,114340.0,114330.0,1.63864006]
[1759179759387,0.5404735,114340.0,114330.0,0.83228006]
[1759179759690,0.5531535,114340.0,114330.0,1.27767]
[1759179759888,0.17003804,114340.0,114330.0,1.27767]
[1759179760189,0.5531535,114340.0,114330.0,1.29139]
[1759179760987,0.5531535,114340.0,114330.0,1.63834336]
[1759179761589,0.5531535,114340.0,114330.0,0.83210336]
[1759179761795,0.5531535,114340.0,114330.0,1.29139]
[1759179762495,0.5404735,114340.0,114330.0,1.29139]
[1759179764490,0.4530712,114340.0,114330.0,1.29139]
[1759179765293,0.4530712,114340.0,114330.0,1.63834336]
[1759179769298,0.5404756,114340.0,114330.0,1.63826336]
[1759179770099,0.5404756,114340.0,114330.0,0.81838336]
[1759179770397,0.5404756,114340.0,114300.0,0.46229796]
[1759179770398,0.1239976,114310.0,114300.0,0.46229796]
[1759179770594,0.87599216,114310.0,114300.0,0.38392]
[1759179770792,0.5290388,114310.0,114300.0,0.38392]
[1759179771499,0.5290388,114310.0,114300.0,0.39092]
[1759179771902,0.5290388,114310.0,114300.0,0.03012]
[1759179772200,0.5290388,114310.0,114300.0,0.83224]
[1759179772899,0.5290388,114310.0,114300.0,0.82924]
[1759179773099,0.50811306,114310.0,114300.0,0.84524]
[1759179773497,0.57695119,114310.0,114300.0,0.84524]
[1759179774104,0.57695119,114310.0,114300.0,0.84512]
[1759179775001,0.57695119,114310.0,114300.0,0.9325552]
[1759179775598,0.47617359,114310.0,114300.0,1.29304856]
[1759179775801,0.45295359,114310.0,114300.0,1.65384856]
[1759179776303,0.45295359,114310.0,114300.0,2.40080192]
[1759179776304,0.07023813,114310.0,114300.0,2.40080192]
[1759179776506,0.06983813,114310.0,114300.0,2.05384856]
[1759179776703,0.07023813,114310.0,114300.0,2.05384856]
[1759179778400,0.07023813,114310.0,114300.0,2.4010699]
[1759179778605,0.07023813,114310.0,114300.0,2.4011099]
[1759179781304,0.0014,114310.0,114300.0,2.4011099]
[1759179781500,0.02650266,114330.0,114320.0,0.12408]
[1759179781694,0.02650266,114330.0,114320.0,1.9852147]
[1759179781695,0.40713546,114330.0,114320.0,1.9852147]
[1759179781907,0.38391546,114330.0,114320.0,2.3460147]
[1759179782201,0.02322,114340.0,114330.0,0.1240724]
[1759179782403,0.02322,114340.0,114330.0,0.83195975]
[1759179782595,0.40633546,114340.0,114330.0,1.63811975]
[1759179782796,0.49374016,114340.0,114330.0,1.63811975]
[1759179783494,0.49474016,114340.0,114330.0,1.64111975]
[1759179783698,0.49474016,114340.0,114330.0,0.83495975]
[1759179784001,0.49474016,114340.0,114330.0,1.64111975]
[1759179784197,0.49474016,114340.0,114330.0,0.83495975]
[1759179784198,0.38411546,114340.0,114330.0,0.83495975]
[1759179784394,0.38411546,114340.0,114330.0,1.64107975]
[1759179784592,0.40733546,114340.0,114330.0,0.83495975]
[1759179784804,0.40773546,114340.0,114330.0,0.83495975]
[1759179785005,0.40773546,114340.0,114330.0,1.64107975]
[1759179786100,0.0014,114340.0,114330.0,2.3881671]
[1759179786298,0.0014,114340.0,114330.0,1.5820471]
[1759179786506,0.001,114340.0,114330.0,2.3881271]
[1759179786707,0.0014,114340.0,114330.0,2.3881271]
[1759179787203,0.0008,114360.0,114350.0,0.1240571]
[1759179787408,0.38391546,114360.0,114350.0,1.27722445]
[1759179787611,0.38311546,114360.0,114350.0,1.27722445]
[1759179787800,0.38351546,114360.0,114350.0,1.27722445]
[1759179788000,0.40673546,114360.0,114350.0,1.27722445]
[1759179788508,0.41973546,114360.0,114350.0,1.27822445]
[1759179788711,0.41973546,114360.0,114350.0,1.27818445]
[1759179789208,0.44208642,114360.0,114350.0,1.27818445]
[1759179789510,0.43608642,114360.0,114350.0,1.27718445]
[1759179789810,0.52347582,114360.0,114350.0,0.1240571]
[1759179790012,0.50079771,114360.0,114350.0,0.02312]
[1759179790208,0.86156221,114360.0,114350.0,1.17620735]
[1759179790399,0.86156221,114360.0,114350.0,0.37020735]
[1759179790709,0.95222225,114360.0,114350.0,1.26360445]
[1759179790899,0.95222225,114360.0,114350.0,1.27714445]
[1759179791412,0.95222225,114360.0,114350.0,1.27710445]
[1759179792108,0.95222225,114360.0,114350.0,0.47114445]
[1759179792407,0.95222225,114360.0,114350.0,1.27710445]
[1759179793412,0.95222225,114360.0,114350.0,1.18966735]
[1759179793712,0.95222225,114360.0,114350.0,0.38374735]
[1759179794012,0.95222225,114360.0,114350.0,1.27706445]
[1759179794513,0.95222225,114360.0,114350.0,0.47114445]
[1759179794707,0.95222225,114360.0,114350.0,1.27702445]
[1759179796008,0.95222225,114360.0,114350.0,0.47114445]
[1759179796208,0.95222225,114360.0,114350.0,1.27702445]
[1759179797114,1.2993096,114360.0,114350.0,0.9163571]
[1759179797513,0.95222225,114360.0,114350.0,0.9163571]
[1759179798116,0.95222225,114360.0,114350.0,0.82896]
[1759179799117,0.95222225,114360.0,114350.0,1.17604735]
[1759179800606,0.95222225,114360.0,114320.0,0.02161]
[1759179800607,0.1006344,114330.0,114320.0,0.02161]
[1759179800806,1.58263995,114330.0,114320.0,0.02161]
[1759179801005,1.56006456,114330.0,114320.0,0.02161]
[1759179801220,1.23555304,114330.0,114320.0,0.02161]
[1759179801916,1.23555304,114330.0,114320.0,0.02661]
[1759179802216,1.23595304,114330.0,114320.0,0.02861]
[1759179802517,1.23595304,114330.0,114320.0,0.83437]
[1759179803716,1.23595304,114330.0,114320.0,0.92179]
[1759179805209,1.24466447,114330.0,114320.0,0.92179]
[1759179808215,0.89757712,114330.0,114320.0,0.92179]
[1759179808419,1.24466447,114330.0,114320.0,0.92179]
[1759179809519,1.24466447,114330.0,114320.0,0.83437]
[1759179809917,1.24466447,114330.0,114320.0,0.92179]
[1759179811012,1.24466447,114330.0,114320.0,0.02861]
[1759179811214,1.24466447,114330.0,114320.0,0.83437]
[1759179812118,1.24466447,114330.0,114320.0,0.92179]
[1759179813618,1.24466447,114330.0,114320.0,0.02861]
[1759179813819,1.24466447,114330.0,114320.0,0.92179]
[1759179816420,1.59175182,114330.0,114320.0,0.11603]
[1759179816718,1.59175182,114330.0,114320.0,0.02861]
[1759179817030,1.99175182,114330.0,114320.0,0.007]
[1759179817819,2.05038447,114330.0,114320.0,0.11603]
[1759179818012,2.04998447,114330.0,114320.0,0.11603]
[1759179818213,2.05038447,114330.0,114320.0,0.11603]
[1759179818521,1.24466447,114330.0,114320.0,0.11603]
[1759179818720,2.05038447,114330.0,114320.0,0.11603]
[1759179819020,2.04998447,114330.0,114320.0,0.11603]
[1759179819208,2.05038447,114330.0,114320.0,0.11603]
[1759179819620,1.24466447,114330.0,114320.0,0.11603]
[1759179819813,2.05038447,114330.0,114320.0,0.11603]
[1759179820015,0.86114701,114330.0,114320.0,0.11603]
[1759179820323,1.24466247,114330.0,114320.0,0.11603]
[1759179821616,0.89757512,114330.0,114320.0,0.11603]
[1759179821822,1.24466247,114330.0,114320.0,0.11603]
[1759179823721,0.89757512,114330.0,114320.0,0.11603]
[1759179823922,1.24466247,114330.0,114320.0,0.11603]
[1759179826421,0.89757512,114330.0,114320.0,0.11603]
[1759179826616,1.24466247,114330.0,114320.0,0.11603]
[1759179827323,0.89757512,114330.0,114320.0,0.11603]
[1759179827726,1.24466247,114330.0,114320.0,0.11603]
[1759179828126,1.24466247,114330.0,114320.0,0.02861]
[1759179828522,1.24466247,114330.0,114320.0,0.1160299]
[1759179828721,1.22208664,114330.0,114320.0,0.1160299]
[1759179828924,1.24471563,114330.0,114320.0,0.1160299]
[1759179829124,1.24471563,114330.0,114320.0,0.02861]
[1759179830027,1.24471563,114330.0,114320.0,0.1160299]
[1759179834929,1.24471563,114330.0,114320.0,0.02861]
[1759179840226,1.24474912,114330.0,114320.0,0.02861]
[1759179841134,1.276199,114330.0,114320.0,0.02861]
[1759179847338,0.915399,114330.0,114320.0,0.02861]
[1759179847637,0.915399,114330.0,114320.0,0.1300199]
[1759179847838,0.56827816,114330.0,114320.0,0.1300199]
[1759179848026,0.56827816,114330.0,114320.0,0.02861]
[1759179848225,0.915399,114330.0,114320.0,0.02861]
[1759179849838,0.56827816,114330.0,114320.0,0.02861]
[1759179850046,0.53228354,114330.0,114320.0,0.02861]
[1759179850232,0.915399,114330.0,114320.0,0.02861]
[1759179850738,0.88394912,114330.0,114320.0,0.02861]
[1759179851336,0.53682828,114330.0,114320.0,0.02861]
[1759179851540,0.88394912,114330.0,114320.0,0.02861]
[1759179852535,1.24474912,114330.0,114320.0,0.02861]
[1759179864944,1.24432182,114330.0,114320.0,0.02861]
[1759179874357,0.86120636,114330.0,114320.0,0.02861]
[1759179874654,1.24432182,114330.0,114320.0,0.02861]
[1759179876862,0.89720098,114330.0,114320.0,0.02861]
[1759179877159,1.24432182,114330.0,114320.0,0.02861]
[1759179877752,0.88352182,114330.0,114320.0,0.02861]
[1759179879862,0.50040636,114330.0,114320.0,0.02861]
[1759179880163,0.88352182,114330.0,114320.0,0.02861]
[1759179882560,0.88352182,114330.0,114320.0,0.38941]
[1759179885766,0.53640098,114330.0,114320.0,0.38941]
[1759179885964,0.13966552,114330.0,114320.0,1.23762224]
[1759179886268,0.02220169,114330.0,114320.0,1.23762224]
[1759179886459,0.02260169,114330.0,114320.0,1.23762224]
[1759179886661,0.02220169,114330.0,114320.0,1.23762224]
[1759179886965,0.01700169,114330.0,114320.0,0.8905014]
[1759179887169,0.0004,114330.0,114320.0,2.04282224]
[1759179888465,0.1224025,114330.0,114320.0,1.2956614]
[1759179888672,0.035,114330.0,114320.0,0.83762224]
[1759179888859,0.035,114330.0,114320.0,1.2956614]
[1759179889164,0.02224,114330.0,114320.0,1.2956614]
[1759179889366,0.02224,114330.0,114320.0,1.64278224]
[1759179892565,0.02224,114330.0,114320.0,0.83762224]
[1759179892869,0.02224,114330.0,114320.0,1.64274224]
[1759179898970,0.0004,114330.0,114320.0,1.64274224]
[1759179899472,0.0004,114330.0,114320.0,1.64266224]
[1759179900072,0.0004,114330.0,114320.0,1.65131824]
[1759179900270,0.0004,114330.0,114320.0,2.39843908]
[1759179900469,0.02184,114350.0,114340.0,0.0873887]
[1759179900673,0.14416763,114350.0,114340.0,0.9136249]
[1759179900878,0.52728309,114350.0,114340.0,0.4693849]
[1759179901070,0.52648309,114350.0,114340.0,0.4693849]
[1759179901271,0.52688309,114350.0,114340.0,1.2744249]
[1759179901470,0.52688309,114350.0,114340.0,0.4693849]
[1759179901670,0.52688309,114350.0,114340.0,1.2744249]
[1759179902173,0.52988309,114350.0,114340.0,1.2743849]
[1759179902364,0.88381261,114350.0,114340.0,1.62131442]
[1759179904577,0.89245377,114350.0,114340.0,1.62131442]
[1759179906281,0.89245377,114350.0,114340.0,1.62127442]
[1759179907279,0.54552425,114350.0,114340.0,1.62127442]
[1759179907478,0.89245377,114350.0,114340.0,1.62127442]
[1759179908382,0.89245377,114350.0,114340.0,0.38199]
[1759179908582,0.89245377,114350.0,114340.0,1.53383952]
[1759179909081,0.54552425,114350.0,114340.0,1.53383952]
[1759179909280,0.89245377,114350.0,114340.0,1.53383952]
[1759179909582,0.54552425,114350.0,114340.0,1.62123432]
[1759179909881,0.50933831,114350.0,114340.0,1.62123432]
[1759179910181,0.80506657,114350.0,114340.0,1.62123432]
[1759179910380,0.80506657,114350.0,114340.0,1.63435432]
[1759179910784,0.44537705,114350.0,114340.0,1.63435432]
[1759179910985,0.79230657,114350.0,114340.0,1.63435432]
[1759179911180,0.44537705,114350.0,114340.0,1.98128384]
[1759179911882,0.0104,114350.0,114340.0,1.17636384]
[1759179912084,0.01,114350.0,114340.0,1.98128384]
[1759179912282,0.0104,114350.0,114340.0,1.98128384]
[1759179912877,0.0104,114350.0,114340.0,2.38128384]
[1759179913079,0.01,114350.0,114340.0,2.38128384]
[1759179913279,0.0104,114350.0,114340.0,2.38128384]
[1759179915680,0.0104,114350.0,114340.0,2.38124384]
[1759179918185,0.0104,114350.0,114340.0,1.57636384]
[1759179918386,0.0104,114350.0,114340.0,2.38120384]
[1759179919887,0.0104,114350.0,114340.0,1.57636384]
[1759179920087,0.0104,114350.0,114340.0,2.38120384]
[1759179920289,0.0104,114350.0,114340.0,1.57636384]
[1759179920586,0.0104,114350.0,114340.0,2.38116384]
[1759179921784,0.0104,114350.0,114340.0,2.72809336]
[1759179921991,0.01,114350.0,114340.0,2.72809336]
[1759179922178,0.0104,114350.0,114340.0,2.72809336]
[1759179922382,0.0104,114350.0,114340.0,1.92329336]
[1759179922682,0.0104,114350.0,114340.0,2.72809336]
[1759179922990,0.0004,114350.0,114340.0,2.72809336]
[1759179923288,0.0024,114350.0,114340.0,2.72809336]
[1759179923488,0.002,114350.0,114340.0,2.72809336]
[1759179923680,0.0024,114350.0,114340.0,2.72809336]
[1759179924082,0.0024,114350.0,114340.0,2.72805336]
[1759179924887,0.0008,114370.0,114360.0,0.81641884]
[1759179925088,4e-05,114380.0,114370.0,0.1225522]
[1759179925089,0.02153,114380.0,114370.0,0.1225522]
[1759179925288,0.04287204,114380.0,114370.0,1.63504172]
[1759179925589,0.1116332,114380.0,114370.0,0.83028172]
[1759179925793,0.13023654,114380.0,114370.0,1.63504172]
[1759179925990,0.13901308,114380.0,114370.0,1.63504172]
[1759179926191,0.14001308,114380.0,114370.0,0.83028172]
[1759179926392,0.14001308,114380.0,114370.0,1.63500172]
[1759179926793,0.13901308,114380.0,114370.0,1.63600172]
[1759179926995,0.52212854,114380.0,114370.0,1.63600172]
[1759179927591,0.52212854,114380.0,114370.0,1.63596172]
[1759179928684,0.52212854,114380.0,114370.0,0.83128172]
[1759179928896,0.52212854,114380.0,114370.0,1.63596172]
[1759179929996,0.93846917,114380.0,114370.0,1.63596172]
[1759179930295,0.55535371,114380.0,114370.0,1.63596172]
[1759179930497,0.93846917,114380.0,114370.0,1.63596172]
[1759179931697,0.59153965,114380.0,114370.0,1.63596172]
[1759179931998,0.59153965,114380.0,114370.0,1.63592172]
[1759179931999,0.93846917,114380.0,114370.0,1.63592172]
[1759179932999,0.93846917,114380.0,114370.0,0.83128172]
[1759179933298,0.93846917,114380.0,114370.0,1.63588172]
[1759179933992,0.93846917,114380.0,114370.0,0.83128172]
[1759179934192,0.93846917,114380.0,114370.0,1.63588172]
[1759179935703,0.59153965,114380.0,114370.0,1.63588172]
[1759179935902,0.93846917,114380.0,114370.0,1.63588172]
[1759179936396,0.59153965,114380.0,114370.0,1.63588172]
[1759179936796,0.93846917,114380.0,114370.0,1.63588172]
[1759179939104,0.59153965,114380.0,114370.0,1.63588172]
[1759179939300,0.93846917,114380.0,114370.0,1.63588172]
[1759179939998,0.55535371,114380.0,114370.0,1.63588172]
[1759179940195,0.93846917,114380.0,114370.0,1.63588172]
[1759179942104,0.93846917,114380.0,114370.0,0.83128172]
[1759179942306,0.93846917,114380.0,114370.0,1.63576172]
[1759179942606,0.93846917,114380.0,114370.0,0.83128172]
[1759179942805,0.93846917,114380.0,114370.0,1.63572172]
[1759179943507,0.93846917,114380.0,114370.0,0.83128172]
[1759179943704,0.93846917,114380.0,114370.0,1.63572172]
[1759179944407,0.59153965,114380.0,114370.0,1.63572172]
[1759179944807,0.93846917,114380.0,114370.0,1.63572172]
[1759179948497,0.59153965,114380.0,114370.0,1.63572172]
[1759179948702,0.93846917,114380.0,114370.0,1.63572172]
[1759179950805,0.59153965,114380.0,114370.0,1.63572172]
[1759179951010,0.93846917,114380.0,114370.0,1.63572172]
[1759179951809,0.93846917,114380.0,114370.0,1.54826952]
[1759179954013,0.93846917,114380.0,114370.0,1.63564172]
[1759179958211,0.93846917,114380.0,114370.0,0.83128172]
[1759179958404,0.93846917,114380.0,114370.0,0.74390952]
[1759179958604,0.93846917,114380.0,114370.0,1.54814952]
[1759179960111,0.93846917,114380.0,114370.0,0.74390952]
[1759179960311,0.93846917,114380.0,114370.0,1.54814952]
[1759179960911,0.93846917,114380.0,114370.0,0.74390952]
[1759179961114,0.93846917,114380.0,114370.0,1.54810952]
[1759179962300,0.59153965,114380.0,114370.0,1.54791694]
[1759179962513,0.59153965,114380.0,114370.0,1.63528944]
[1759179962911,0.60548965,114380.0,114370.0,1.2885525]
[1759179963117,0.60548965,114380.0,114370.0,1.20118]
[1759179963318,0.60548965,114380.0,114370.0,1.54791694]
[1759179963512,0.60548965,114380.0,114370.0,0.84034]
[1759179963812,0.60548965,114380.0,114370.0,1.20114]
[1759179964815,0.95222659,114380.0,114370.0,1.20114]
[1759179965415,0.60548965,114380.0,114370.0,1.20114]
[1759179966117,0.60548965,114380.0,114370.0,0.39698]
[1759179966312,0.60548965,114380.0,114370.0,1.20114]
[1759179966512,0.59153965,114380.0,114370.0,1.20114]
[1759179970020,0.20842419,114380.0,114370.0,1.20114]
[1759179970220,0.59153965,114380.0,114370.0,1.20114]
[1759179974815,0.59153965,114380.0,114370.0,1.2885123]
[1759179975225,0.59153965,114380.0,114370.0,1.20114]
[1759179976022,0.59153965,114380.0,114370.0,1.54787694]
[1759179979326,0.59153965,114380.0,114370.0,1.20114]
[1759179980029,0.59153965,114380.0,114370.0,0.39698]
[1759179980233,0.58276311,114380.0,114370.0,1.20094]
[1759179980829,0.58276311,114380.0,114370.0,1.2883123]
[1759179981025,0.58276311,114380.0,114370.0,1.63504924]
[1759179987842,0.58276311,114380.0,114370.0,0.4843523]
[1759179988042,0.58276311,114380.0,114370.0,1.63492924]
[1759179988637,0.58276311,114380.0,114370.0,0.83108924]
[1759179988839,0.58276311,114380.0,114370.0,1.63488924]
[1759179990036,0.56127311,114380.0,114370.0,1.63488924]
[1759179991247,0.56127311,114380.0,114370.0,1.2881523]
[1759179991445,0.56127311,114380.0,114370.0,0.83108924]
[1759179991639,0.56127311,114380.0,114370.0,1.63488924]
[1759179992247,0.58290311,114380.0,114370.0,0.83108924]
[1759179992649,0.58290311,114380.0,114370.0,1.63484924]
[1759179994745,0.58290311,114380.0,114370.0,0.83108924]
[1759179994952,0.58290311,114380.0,114370.0,1.63484924]
[1759179996351,0.58290311,114380.0,114370.0,0.83108924]
[1759179996553,0.58290311,114380.0,114370.0,1.63476924]
[1759179997856,0.58290311,114380.0,114370.0,1.2880323]
[1759179998056,0.58290311,114380.0,114370.0,1.63476924]
[1759179999755,0.58290311,114380.0,114370.0,0.83108924]
[1759179999956,0.19978765,114380.0,114370.0,1.63472924]
[1759180000148,0.58290311,114380.0,114370.0,1.63472924]
[1759180007055,0.58290311,114380.0,114370.0,1.99552924]
[1759180013657,0.58290311,114380.0,114370.0,1.99524924]
[1759180017867,0.58290311,114380.0,114370.0,1.99516924]
[1759180020572,0.58290311,114380.0,114370.0,1.99512924]
[1759180020967,0.56127311,114380.0,114370.0,1.99512924]
[1759180021165,0.02138204,114380.0,114370.0,2.39512924]
[1759180021570,0.02138204,114380.0,114370.0,2.39508924]
[1759180021772,0.02178204,114380.0,114370.0,2.39508924]
[1759180022374,0.02178204,114380.0,114370.0,2.0483523]
[1759180022574,0.02178204,114380.0,114370.0,2.39508924]
[1759180024080,0.02178204,114380.0,114370.0,1.59188924]
[1759180024274,0.02178204,114380.0,114370.0,2.74155088]
[1759180024676,0.02178204,114380.0,114370.0,1.2451523]
[1759180024868,0.02178204,114380.0,114370.0,2.74151088]
[1759180025074,0.00044,114380.0,114370.0,2.74151088]
[1759180028783,0.00044,114380.0,114370.0,2.74147088]
[1759180031877,0.00044,114380.0,114370.0,1.93835088]
[1759180032186,0.00044,114380.0,114370.0,2.74147088]
[1759180033778,0.00044,114380.0,114370.0,2.0482723]
[1759180033982,0.00044,114380.0,114370.0,2.74147088]
[1759180035487,0.00044,114380.0,114370.0,2.74143088]
[1759180036687,0.00044,114380.0,114370.0,1.93835088]
[1759180036988,0.00044,114380.0,114370.0,1.59175159]
[1759180037189,0.00044,114380.0,114370.0,2.39483159]
[1759180037380,0.00044,114380.0,114370.0,1.59175159]
[1759180037580,0.00044,114380.0,114370.0,2.0482323]
[1759180037780,0.00044,114380.0,114370.0,2.39483159]
[1759180038287,0.00044,114380.0,114370.0,1.59175159]
[1759180038491,0.00044,114380.0,114370.0,2.39483159]
[1759180038688,0.00044,114380.0,114370.0,1.59175159]
[1759180038884,0.00044,114380.0,114370.0,2.0483923]
[1759180039192,0.00044,114380.0,114370.0,2.39499159]
[1759180039990,0.00044,114380.0,114370.0,1.59175159]
[1759180040490,0.00044,114380.0,114370.0,2.39511159]
[1759180040894,0.38355546,114380.0,114370.0,1.59175159]
[1759180041387,0.38355546,114380.0,114370.0,2.39527159]
[1759180044886,0.38355546,114380.0,114370.0,2.45823236]
[1759180045082,0.38355546,114380.0,114370.0,2.11163307]
[1759180045290,0.38355546,114380.0,114370.0,2.45823236]
[1759180046292,0.38355546,114380.0,114370.0,0.90811547]
[1759180046293,0.83980185,114380.0,114370.0,0.90811547]
[1759180046502,0.83980185,114380.0,114370.0,1.99523399]
[1759180046797,0.85321185,114380.0,114370.0,1.99523399]
[1759180046998,0.85321185,114380.0,114370.0,1.6486347]
[1759180047392,0.85321185,114380.0,114370.0,1.99523399]
[1759180047594,0.85321185,114380.0,114370.0,1.6486347]
[1759180047785,0.85321185,114380.0,114370.0,1.99523399]
[1759180048306,0.85321185,114380.0,114370.0,2.05819476]
[1759180048796,0.85321185,114380.0,114370.0,2.05839476]
[1759180049096,0.49320256,114380.0,114370.0,2.05839476]
[1759180049400,0.49320256,114380.0,114370.0,2.05835476]
[1759180050301,0.49320256,114380.0,114370.0,1.71175547]
[1759180050500,0.49320256,114380.0,114370.0,1.99539399]
[1759180054498,0.49320256,114380.0,114370.0,1.6487947]
[1759180054700,0.49320256,114380.0,114370.0,1.99539399]
[1759180055004,0.40583546,114380.0,114370.0,1.99539399]
[1759180055995,0.40583546,114380.0,114370.0,1.6487947]
[1759180056295,0.40583546,114380.0,114370.0,1.99539399]
[1759180058406,0.40583546,114380.0,114370.0,1.6487947]
[1759180058800,0.40583546,114380.0,114370.0,1.99539399]
[1759180059406,0.40583546,114380.0,114370.0,1.6487947]
[1759180059608,0.40583546,114380.0,114370.0,1.99539399]
[1759180059906,0.02272,114380.0,114370.0,1.99539399]
[1759180060109,0.40583546,114380.0,114370.0,1.99539399]
[1759180060406,0.40583546,114380.0,114370.0,2.05835476]
[1759180061105,0.40583546,114380.0,114370.0,1.99539399]
[1759180063010,0.02272,114380.0,114370.0,1.99539399]
[1759180063308,0.40583546,114380.0,114370.0,1.6487947]
[1759180063510,0.40583546,114380.0,114370.0,1.99539399]
[1759180067610,0.40583546,114380.0,114370.0,1.6487947]
[1759180067807,0.40583546,114380.0,114370.0,1.99539399]
[1759180068311,0.40583546,114380.0,114370.0,1.99439399]
[1759180068517,0.40583546,114380.0,114370.0,1.99939399]
[1759180068712,0.40583546,114380.0,114370.0,2.00239399]
[1759180068912,0.40583546,114380.0,114370.0,2.06535476]
[1759180069321,0.40583546,114380.0,114370.0,2.00239399]
[1759180069518,0.40583546,114380.0,114370.0,1.6557947]
[1759180069719,0.40583546,114380.0,114370.0,2.00239399]
[1759180070223,0.45583546,114380.0,114370.0,2.06535476]
[1759180070413,0.45583546,114380.0,114370.0,2.00239399]
[1759180070924,0.45583546,114380.0,114370.0,2.06535476]
[1759180074331,0.45583546,114380.0,114370.0,1.71875547]
[1759180074521,0.07272,114380.0,114370.0,2.06535476]
[1759180074721,0.45583546,114380.0,114370.0,2.06535476]
[1759180075424,0.45583546,114380.0,114370.0,1.26171476]
[1759180075728,0.46903546,114380.0,114370.0,2.06479476]
[1759180075927,0.45583546,114380.0,114370.0,2.06479476]
[1759180078132,0.45583546,114380.0,114370.0,1.71819547]
[1759180078527,0.45583546,114380.0,114370.0,2.06479476]
[1759180081431,0.45583546,114380.0,114370.0,1.71819547]
[1759180081635,0.45583546,114380.0,114370.0,2.06479476]
[1759180086235,0.45583546,114380.0,114370.0,2.06489737]
[1759180087435,0.55640256,114380.0,114370.0,1.26181737]
[1759180087738,1.32445293,114380.0,114370.0,0.02972]
[1759180087936,1.68525293,114380.0,114370.0,0.81108]
[1759180088339,1.68525293,114380.0,114370.0,0.008]
[1759180090032,1.30213747,114380.0,114370.0,0.008]
[1759180090233,1.68525293,114380.0,114370.0,0.008]
[1759180090731,1.68525293,114380.0,114370.0,0.0953747]
[1759180093642,2.48837293,114380.0,114370.0,0.0953747]